bitfinex/quotes_SOLUSD_20260103
["timestamp","ask_amount","ask_price","bid_price","bid_amount"]
[1767448771915,99.77171963,131.27,131.25,0.61842256]
[1767448774215,0.65823614,131.26,131.24,7.61960967]
[1767448783114,100.42995577,131.27,131.24,8.29803223]
[1767448784040,0.65823614,131.26,131.24,8.29803223]
[1767448791743,0.65823614,131.26,131.23,8.29863135]
[1767448794346,0.65823614,131.26,131.23,10.93282757]
[1767448795547,100.42995577,131.27,131.24,8.29786473]
[1767448796646,0.65823614,131.26,131.24,8.29786473]
[1767448798048,100.42995577,131.27,131.24,8.29786473]
[1767448798846,0.65823614,131.26,131.24,8.29786473]
[1767448799034,0.65823614,131.26,131.24,7.61944217]
[1767448800834,0.65823614,131.26,131.23,7.62020879]
[1767448801345,0.65823614,131.26,131.23,8.28058892]
[1767448802146,0.65823614,131.26,131.23,7.62020879]
[1767448807555,0.65823614,131.26,131.23,10.91478514]
[1767448808337,0.65823614,131.26,131.23,8.28058892]
[1767448808734,0.65823614,131.26,131.24,8.27967209]
[1767448811345,3.29243236,131.26,131.22,0.66038013]
[1767448811547,0.65742077,131.25,131.22,0.66038013]
[1767448812346,0.62742078,131.25,131.22,0.66038013]
[1767448812547,0.62742078,131.25,131.21,8.28175045]
[1767448813760,2.31385351,131.25,131.21,8.28175045]
[1767448815363,0.65742077,131.24,131.21,8.28175045]
[1767448815546,0.62742078,131.24,131.21,8.28175045]
[1767448822366,0.59742079,131.24,131.21,8.28175045]
[1767448824269,0.59742079,131.24,131.21,9.96818318]
[1767448829252,0.5674208,131.24,131.21,9.96818318]
[1767448831053,0.5674208,131.24,131.21,29.02160898]
[1767448835797,99.77171963,131.27,131.23,0.69832299]
[1767448836099,99.77171963,131.27,131.24,2.38475572]
[1767448836393,99.77171963,131.27,131.24,0.69832299]
[1767448836698,99.77171963,131.27,131.25,0.69832299]
[1767448836909,60.99198021,131.29,131.26,0.69832299]
[1767448837076,0.67771257,131.28,131.26,0.66986403]
[1767448837277,0.67771257,131.28,131.25,1.68643273]
[1767448837777,0.67771257,131.28,131.25,9.30504698]
[1767448838985,0.67771257,131.28,131.25,7.61861425]
[1767448840096,0.67771257,131.28,131.25,10.00336997]
[1767448840281,60.99198021,131.29,131.27,2.38475572]
[1767448840282,61.66969278,131.29,131.27,2.38475572]
[1767448840481,61.66969278,131.29,131.27,1.68643273]
[1767448841708,60.99198021,131.29,131.27,2.38475572]
[1767448841879,61.66969278,131.29,131.27,2.38475572]
[1767448843204,61.66969278,131.29,131.27,7.6178087]
[1767448854896,61.66969278,131.29,131.27,7.5578087]
[1767448863737,0.70058009,131.32,131.28,28.34700555]
[1767448863908,13.9,131.33,131.29,2.38003512]
[1767448864100,13.9,131.33,131.28,26.66057282]
[1767448864101,13.9,131.32,131.28,26.66057282]
[1767448865309,15.58643273,131.32,131.28,26.66057282]
[1767448866034,0.70058009,131.31,131.28,26.66057282]
[1767448867834,0.70058009,131.3,131.28,7.61730652]
[1767448868037,14.60058009,131.29,131.28,7.61730652]
[1767448868609,14.60058009,131.29,131.27,7.61788679]
[1767448869631,13.9,131.3,131.27,8.31148918]
[1767448871627,14.60058009,131.3,131.27,8.31148918]
[1767448872150,0.70058009,131.29,131.27,8.31148918]
[1767448872349,14.60058009,131.32,131.29,0.69360239]
[1767448872555,0.70058009,131.31,131.29,0.69360239]
[1767448872726,14.60058009,131.32,131.29,8.30993952]
[1767448874953,0.70058009,131.32,131.29,8.30993952]
[1767448875181,0.70058009,131.32,131.3,8.30964547]
[1767448875464,14.60058009,131.32,131.3,8.30964547]
[1767448876556,102.4,131.33,131.31,0.69360239]
[1767448876857,0.70058009,131.34,131.31,0.69360239]
[1767448878360,0.70058009,131.34,131.31,8.3088284]
[1767448880764,0.70058009,131.34,131.31,7.61522601]
[1767448883158,0.70058009,131.34,131.3,8.3096168]
[1767448883344,0.70058009,131.33,131.3,8.3096168]
[1767448884068,0.70058009,131.33,131.3,7.61601441]
[1767448884365,0.70058009,131.33,131.3,0.69360239]
[1767448885871,0.70058009,131.33,131.3,8.30951116]
[1767448888367,0.70058009,131.33,131.3,7.61590877]
[1767448890771,0.70051429,131.32,131.3,7.61590877]
[1767448891469,0.70051429,131.32,131.29,8.31012763]
[1767448891651,0.70051429,131.31,131.28,0.65681108]
[1767448892675,0.70051429,131.3,131.28,7.61720275]
[1767448893873,0.70051429,131.3,131.26,7.61833719]
[1767448894076,0.70051429,131.3,131.25,7.61868551]
[1767448894077,0.70051429,131.28,131.25,7.61868551]
[1767448894274,0.6705143,131.27,131.24,0.65681108]
[1767448894449,2.63166633,131.27,131.23,0.65681108]
[1767448894774,13.9,131.29,131.23,0.65681108]
[1767448894775,2.63166633,131.26,131.23,0.65681108]
[1767448896173,0.70051429,131.25,131.22,0.65681108]
[1767448896380,3.33218062,131.25,131.22,0.65681108]
[1767448897853,3.30218063,131.25,131.22,0.65681108]
[1767448898759,2.63166633,131.24,131.21,0.65681108]
[1767448898960,2.60166634,131.24,131.21,0.65681108]
[1767448899770,2.60166634,131.24,131.21,8.27774665]
[1767448901660,3.55558966,131.24,131.21,8.27774665]
[1767448901858,0.70051429,131.23,131.2,8.27861372]
[1767448902058,0.6705143,131.23,131.2,8.27861372]
[1767448902366,3.52558967,131.23,131.2,8.27861372]
[1767448903164,0.6705143,131.23,131.2,8.27861372]
[1767448903658,0.6705143,131.23,131.2,0.65681108]
[1767448903865,2.85507537,131.23,131.18,22.17938158]
[1767448904183,0.70051429,131.21,131.18,0.65681108]
[1767448904484,1e-08,131.21,131.18,0.65681108]
[1767448904671,2.85507537,131.21,131.18,0.65681108]
[1767448904878,2.85507537,131.22,131.19,0.65681108]
[1767448905688,10.47587547,131.22,131.19,0.65681108]
[1767448906382,0.07703318,131.21,131.18,0.65681108]
[1767448906573,2.85507537,131.21,131.18,0.65681108]
[1767448908276,6.58991125,131.21,131.17,0.65681108]
[1767448908478,2.85507537,131.2,131.17,0.65681108]
[1767448915789,7.62172779,131.21,131.18,0.65681108]
[1767448915995,10.47680316,131.21,131.18,0.65681108]
[1767448916796,10.47680316,131.21,131.17,8.28044419]
[1767448920804,7.62172779,131.21,131.17,8.28044419]
[1767448921004,10.47680316,131.21,131.17,8.28044419]
[1767448923602,7.62172779,131.21,131.17,8.28044419]
[1767448924987,10.47680316,131.21,131.17,8.28044419]
[1767448925187,2.85507537,131.2,131.17,8.28044419]
[1767448927808,2.85507537,131.2,131.18,0.72240207]
[1767448929910,10.47680316,131.21,131.18,0.72240207]
[1767448932779,101.675,131.22,131.18,7.62297362]
[1767448933007,7.64378392,131.25,131.19,2.85507537]
[1767448933185,10.49885929,131.25,131.19,2.85507537]
[1767448933391,3.54910676,131.24,131.2,0.72240207]
[1767448933610,2.85507537,131.24,131.2,0.72240207]
[1767448933805,2.85507537,131.23,131.2,0.72240207]
[1767448933996,2.85507537,131.23,131.21,0.72240207]
[1767448934299,22.23983955,131.25,131.22,0.72240207]
[1767448934498,1.82756543,131.23,131.2,7.62159521]
[1767448935010,1.82756543,131.22,131.2,7.62159521]
[1767448935209,2.52835737,131.21,131.17,19.05778319]
[1767448935388,2.52835737,131.19,131.14,13.92]
[1767448935588,2.49835738,131.19,131.14,13.92]
[1767448935885,1.79756544,131.19,131.14,13.92]
[1767448936086,1.82756543,131.2,131.15,26.68699961]
[1767448936512,1.82756543,131.2,131.16,0.72240207]
[1767448936689,2.52835737,131.21,131.16,0.72240207]
[1767448937601,1.82756543,131.21,131.18,0.72240207]
[1767448938102,2.52835737,131.22,131.18,0.72240207]
[1767448938489,21.54038078,131.23,131.18,0.72240207]
[1767448938490,2.52835737,131.24,131.18,0.72240207]
[1767448938892,2.52835737,131.24,131.19,0.72240207]
[1767448939825,0.70079194,131.23,131.2,8.34435328]
[1767448941907,0.70079194,131.24,131.21,0.72240207]
[1767448948315,0.70079194,131.24,131.21,8.34373359]
[1767448949715,0.70968794,131.23,131.2,0.65298631]
[1767448951009,2.53725337,131.23,131.2,0.65298631]
[1767448951522,0.70968794,131.23,131.2,0.65298631]
[1767448951720,2.53725337,131.23,131.2,0.65298631]
[1767448953726,10.15748459,131.23,131.2,0.65298631]
[1767448953926,2.53725337,131.23,131.2,0.65298631]
[1767448958932,2.54087846,131.22,131.19,0.7194881]
[1767448959629,0.71331303,131.22,131.19,0.7194881]
[1767448960209,10.1611115,131.23,131.2,0.7194881]
[1767448960409,0.71331303,131.22,131.2,0.7194881]
[1767448961431,0.71331303,131.22,131.19,0.7194881]
[1767448962028,0.71331303,131.2,131.17,0.7194881]
[1767448962231,2.54087846,131.2,131.17,0.7194881]
[1767448962934,0.71331303,131.19,131.16,8.34342946]
[1767448963134,0.71331303,131.19,131.17,0.7194881]
[1767448963435,2.54087846,131.2,131.17,0.7194881]
[1767448972844,0.71331303,131.2,131.17,0.7194881]
[1767448973041,2.54087846,131.2,131.17,0.7194881]
[1767448973238,2.54087846,131.2,131.17,8.3431348]
[1767448973543,0.71331303,131.19,131.17,8.3431348]
[1767448973944,0.71331303,131.19,131.17,7.6236467]
[1767448975959,0.71331303,131.2,131.17,0.7194881]
[1767448976255,2.54087846,131.2,131.17,0.7194881]
[1767448976555,0.71331303,131.2,131.17,0.7194881]
[1767448977256,0.71331303,131.2,131.17,8.34292671]
[1767448978868,9.44926825,131.21,131.18,0.7194881]
[1767448978869,10.16258128,131.21,131.18,0.7194881]
[1767448979956,0.69976969,131.2,131.18,0.7194881]
[1767448980641,0.69976969,131.2,131.15,32.96141854]
[1767448980833,0.69976969,131.19,131.16,8.33809527]
[1767448981257,0.69976969,131.19,131.17,0.7139683]
[1767448982040,10.14903794,131.21,131.17,0.7139683]
[1767448982356,0.69976969,131.2,131.17,0.7139683]
[1767448982652,0.69976969,131.2,131.17,8.33748245]
[1767448986152,0.69976969,131.23,131.2,0.7139683]
[1767448986349,0.69976969,131.22,131.18,16.46153373]
[1767448987058,0.69976969,131.22,131.19,7.6225322]
[1767448987258,0.69976969,131.22,131.19,8.3365005]
[1767449004064,0.69976969,131.22,131.19,7.6225322]
[1767449013688,0.69976969,131.22,131.19,8.32666611]
[1767449022387,11.15219935,131.24,131.21,0.70413391]
[1767449022589,0.677117,131.23,131.2,8.3260677]
[1767449027589,0.677117,131.25,131.21,0.70413391]
[1767449028585,0.677117,131.25,131.21,8.3250412]
[1767449035678,3.5324297,131.25,131.21,8.3250412]
[1767449035979,0.677117,131.24,131.21,8.3250412]
[1767449045008,0.677117,131.24,131.2,8.2831854]
[1767449049598,0.677117,131.24,131.21,0.66148012]
[1767449063231,8.28389638,131.25,131.22,0.66148012]
[1767449074034,10.11100787,131.25,131.22,0.66148012]
[1767449077448,8.28389638,131.25,131.22,0.66148012]
[1767449077643,0.66484489,131.25,131.22,8.28214102]
[1767449078344,0.72193337,131.26,131.23,0.69640869]
[1767449078535,0.72193337,131.27,131.24,0.69640869]
[1767449079448,0.72193337,131.27,131.24,8.31597579]
[1767449083956,2.54904486,131.27,131.24,8.31597579]
[1767449086452,0.72193337,131.27,131.24,8.31597579]
[1767449088055,0.72193337,131.27,131.23,8.31661748]
[1767449088242,0.72193337,131.26,131.23,8.31661748]
[1767449090353,0.72193337,131.26,131.23,7.62020879]
[1767449090958,0.72193337,131.26,131.23,8.31661748]
[1767449092357,0.72193337,131.26,131.23,7.62020879]
[1767449092562,0.72193337,131.25,131.22,8.31703042]
[1767449097365,0.72193337,131.25,131.21,8.31754089]
[1767449098873,0.72193337,131.24,131.21,8.31754089]
[1767449099971,0.72193337,131.24,131.2,27.39452347]
[1767449103264,0.72193337,131.24,131.21,7.62125984]
[1767449105071,0.72193337,131.24,131.21,0.71843267]
[1767449109874,0.72193337,131.24,131.21,8.33964605]
[1767449121563,0.6654578,131.23,131.2,19.77257226]
[1767449122789,0.6654578,131.23,131.21,0.71843267]
[1767449123188,0.6654578,131.23,131.2,8.34038388]
[1767449124384,0.6654578,131.23,131.2,7.62195121]
[1767449124879,0.6654578,131.23,131.18,0.71843267]
[1767449124880,0.6654578,131.21,131.18,0.71843267]
[1767449126096,0.6654578,131.21,131.18,8.34137662]
[1767449128012,0.63545781,131.21,131.18,8.34137662]
[1767449128610,2.85462846,131.21,131.18,8.34137662]
[1767449128809,2.85462846,131.2,131.17,0.71843267]
[1767449128987,2.85462846,131.2,131.17,8.34206321]
[1767449130091,3.51357412,131.2,131.17,8.34206321]
[1767449138117,0.65894566,131.2,131.17,8.34206321]
[1767449138316,3.51357412,131.2,131.17,8.34206321]
[1767449139918,0.70634718,131.19,131.16,8.28432977]
[1767449140099,0.67634719,131.19,131.16,8.28432977]
[1767449142921,0.6463472,131.19,131.16,8.28432977]
[1767449146624,0.61634721,131.19,131.16,8.28432977]
[1767449161431,0.61634721,131.19,131.16,7.62427569]
[1767449161625,0.65353879,131.17,131.14,8.34991849]
[1767449161939,0.59353881,131.17,131.14,8.34991849]
[1767449168361,0.56353882,131.17,131.14,8.34991849]
[1767449174062,0.65353879,131.15,131.12,0.72499509]
[1767449174364,0.59353881,131.15,131.12,0.72499509]
[1767449175269,0.56353882,131.15,131.12,8.35143929]
[1767449176643,2.85462846,131.15,131.11,8.35197507]
[1767449177148,0.65353879,131.14,131.11,8.35197507]
[1767449178164,0.65353879,131.14,131.12,7.62649317]
[1767449180873,0.65353879,131.14,131.11,8.35195973]
[1767449181368,10.10880583,131.14,131.11,0.72499509]
[1767449181554,0.65353879,131.13,131.11,0.72499509]
[1767449186578,0.65353879,131.13,131.1,0.72499509]
[1767449187854,0.65353879,131.13,131.1,8.35268689]
[1767449196759,0.6235388,131.13,131.1,8.35268689]
[1767449201181,0.67954125,131.12,131.1,7.6276918]
[1767449201486,2.50935441,131.13,131.1,8.33142726]
[1767449203884,0.67954125,131.12,131.1,0.70373546]
[1767449204784,10.13542207,131.13,131.1,0.70373546]
[1767449205893,0.67954125,131.12,131.09,0.70373546]
[1767449207891,0.67954125,131.12,131.09,8.33191994]
[1767449209199,0.67954125,131.12,131.07,34.82295105]
[1767449209200,0.67954125,131.11,131.08,7.62888372]
[1767449209375,0.67954125,131.11,131.08,8.33261918]
[1767449219403,0.64954126,131.11,131.08,8.33261918]
[1767449220597,19.06301216,131.15,131.09,0.66072613]
[1767449220797,13.92,131.15,131.1,0.66072613]
[1767449220988,15.74981316,131.15,131.1,0.66072613]
[1767449221379,0.70143994,131.14,131.1,0.66072613]
[1767449222708,0.70143994,131.14,131.11,0.66072613]
[1767449228390,10.15654692,131.15,131.11,0.66072613]
[1767449231512,7.62409141,131.17,131.13,0.66072613]
[1767449231814,0.70143994,131.17,131.13,0.66072613]
[1767449232597,0.70143994,131.17,131.13,10.11628673]
[1767449232922,0.70143994,131.17,131.13,8.28647357]
[1767449234018,0.70143994,131.17,131.13,10.11628673]
[1767449235228,0.70143994,131.17,131.13,8.28647357]
[1767449236526,24.07472891,131.18,131.14,0.66072613]
[1767449240534,25.10262139,131.18,131.14,0.66072613]
[1767449245265,14.62143994,131.18,131.15,0.66072613]
[1767449245740,12.32904867,131.22,131.15,0.66072613]
[1767449245909,14.62143994,131.21,131.16,3.51843177]
[1767449246109,0.70143994,131.21,131.17,0.66072613]
[1767449246604,0.70143994,131.22,131.19,0.66072613]
[1767449246803,0.70143994,131.23,131.19,0.66072613]
[1767449247307,0.70143994,131.23,131.2,8.28267734]
[1767449251934,0.70143994,131.23,131.21,0.7006828]
[1767449252129,0.70143994,131.23,131.21,0.6406828]
[1767449255032,0.70143994,131.23,131.2,0.7006828]
[1767449260737,11.17961125,131.23,131.2,0.7006828]
[1767449263340,17.4400191,131.24,131.21,0.7006828]
[1767449263544,17.4400191,131.24,131.21,0.64068281]
[1767449263926,3.5200191,131.24,131.21,0.64068281]
[1767449264128,11.13980536,131.24,131.21,0.64068281]
[1767449265952,0.66231346,131.23,131.21,0.64068281]
[1767449272849,3.5200191,131.23,131.21,0.64068281]
[1767449273555,0.66231346,131.23,131.21,0.64068281]
[1767449273761,3.5200191,131.23,131.21,0.64068281]
[1767449277054,3.5200191,131.23,131.21,0.58068283]
[1767449279760,0.66145847,131.21,131.18,0.65757084]
[1767449279966,3.51916411,131.21,131.18,0.65757084]
[1767449283363,11.14067813,131.21,131.18,0.65757084]
[1767449283957,8.28297249,131.21,131.18,0.65757084]
[1767449284161,11.14067813,131.21,131.18,0.65757084]
[1767449284562,8.28297249,131.21,131.18,0.65757084]
[1767449284765,11.14067813,131.21,131.18,0.65757084]
[1767449288343,8.28297249,131.21,131.18,0.65757084]
[1767449288549,11.14011116,131.22,131.18,0.65757084]
[1767449289369,0.66145847,131.21,131.18,0.65757084]
[1767449290075,0.66145847,131.21,131.16,2.85770564]
[1767449290287,0.66145847,131.21,131.15,19.06149991]
[1767449290577,0.66145847,131.18,131.14,13.9]
[1767449291972,0.66145847,131.18,131.15,7.96859164]
[1767449293975,3.51916411,131.18,131.15,0.34373461]
[1767449294155,0.66145847,131.17,131.14,7.9691499]
[1767449296876,0.63145847,131.17,131.14,7.9691499]
[1767449303686,0.60145847,131.17,131.14,7.9691499]
[1767449306287,0.66145847,131.16,131.14,7.62541529]
[1767449307780,0.66145847,131.16,131.13,19.06484073]
[1767449307969,0.66145847,131.16,131.13,0.40373461]
[1767449308165,0.66145847,131.17,131.13,0.40373461]
[1767449309187,0.66145847,131.17,131.14,8.02917307]
[1767449317191,0.6568496,131.16,131.13,7.62584514]
[1767449317487,2.48575424,131.16,131.13,8.02957975]
[1767449318487,0.6568496,131.16,131.13,8.02957975]
[1767449319996,0.6568496,131.16,131.13,0.40373461]
[1767449320317,0.6568496,131.15,131.12,0.40373461]
[1767449320598,0.6268496,131.15,131.12,0.40373461]
[1767449320775,2.45575424,131.15,131.12,0.40373461]
[1767449323296,0.6568496,131.14,131.12,0.40373461]
[1767449323508,0.6568496,131.14,131.11,8.06067901]
[1767449323704,0.6568496,131.14,131.11,0.43373461]
[1767449324007,2.48575424,131.14,131.11,0.43373461]
[1767449324679,0.62684959,131.13,131.1,8.0612573]
[1767449324887,0.59684957,131.13,131.1,8.0612573]
[1767449325380,0.59684957,131.13,131.11,0.49373464]
[1767449325597,0.59684957,131.13,131.1,8.12125733]
[1767449325907,1.82890464,131.13,131.1,8.12125733]
[1767449326898,2.48575424,131.13,131.1,8.12125733]
[1767449327099,2.48575424,131.13,131.1,0.49373464]
[1767449329704,2.48575424,131.13,131.1,8.12146128]
[1767449337005,0.6568496,131.16,131.11,0.49373464]
[1767449337212,0.6568496,131.15,131.11,0.49373464]
[1767449340120,2.48575424,131.15,131.12,8.12033622]
[1767449341315,2.5138634,131.19,131.14,0.49373464]
[1767449342212,2.5138634,131.19,131.14,2.32263928]
[1767449342413,2.5138634,131.19,131.15,0.49373464]
[1767449342718,0.68495876,131.2,131.16,0.49373464]
[1767449343519,0.68495876,131.2,131.17,8.11742908]
[1767449343719,0.68495876,131.2,131.17,8.02950774]
[1767449345322,0.68495876,131.21,131.18,0.49373464]
[1767449345619,0.68495876,131.21,131.18,8.11669566]
[1767449346209,2.5138634,131.21,131.18,8.11669566]
[1767449347023,0.68495876,131.21,131.18,8.11669566]
[1767449347231,0.68495876,131.22,131.19,0.43373469]
[1767449347527,0.68495876,131.22,131.19,0.40617225]
[1767449348315,2.5138634,131.23,131.19,7.62230859]
[1767449348822,0.68495876,131.23,131.19,7.62230859]
[1767449349324,0.68495876,131.23,131.19,8.02848084]
[1767449349703,2.5138634,131.23,131.19,8.02848084]
[1767449360734,2.5138634,131.23,131.2,0.40617225]
[1767449361825,0.68495876,131.23,131.2,0.40617225]
[1767449363739,0.68495876,131.24,131.21,0.40617225]
[1767449364224,0.68495876,131.24,131.21,8.02726126]
[1767449367340,0.68495876,131.24,131.21,7.62108901]
[1767449368543,0.68495876,131.24,131.21,0.40617225]
[1767449369223,3.54011716,131.24,131.21,0.40617225]
[1767449375731,3.526346,131.23,131.2,0.40617225]
[1767449377352,0.6711876,131.23,131.2,8.02800813]
[1767449377852,3.526346,131.24,131.21,0.40617225]
[1767449378636,3.526346,131.24,131.21,8.02753955]
[1767449378832,0.6711876,131.23,131.21,8.02753955]
[1767449380851,0.6711876,131.25,131.22,0.40617225]
[1767449381054,0.6711876,131.24,131.21,0.40617225]
[1767449385459,0.6711876,131.24,131.21,8.02705886]
[1767449389362,0.6711876,131.24,131.21,27.08048466]
[1767449389549,0.6711876,131.25,131.22,0.40617225]
[1767449389854,3.526346,131.28,131.24,0.40617225]
[1767449390058,0.6711876,131.28,131.24,0.37808258]
[1767449390255,2.8551584,131.31,131.26,0.67751516]
[1767449390939,2.8551584,131.31,131.27,7.61788679]
[1767449391263,2.8551584,131.31,131.27,8.29540195]
[1767449392358,0.6711876,131.31,131.28,8.29452761]
[1767449394861,0.6711876,131.31,131.27,8.29540195]
[1767449395059,0.6711876,131.31,131.28,0.67751516]
[1767449395374,0.6711876,131.31,131.28,3.53267356]
[1767449395754,0.6711876,131.31,131.29,0.67751516]
[1767449395956,0.6711876,131.32,131.29,0.67751516]
[1767449396136,3.526346,131.33,131.29,0.67751516]
[1767449396661,0.6711876,131.32,131.29,0.67751516]
[1767449397053,0.6711876,131.32,131.29,8.29403175]
[1767449404162,0.69165032,131.31,131.28,8.30451823]
[1767449408272,0.69165032,131.31,131.29,0.68773084]
[1767449415081,0.69165032,131.31,131.28,7.61678739]
[1767449415261,0.69165032,131.31,131.28,8.30451823]
[1767449427874,0.69165032,131.31,131.28,7.61678739]
[1767449429790,0.69165032,131.31,131.28,8.28260004]
[1767449430088,0.69165032,131.31,131.28,7.61678739]
[1767449431388,0.69165032,131.31,131.28,10.1469082]
[1767449431574,0.69165032,131.31,131.29,0.70519231]
[1767449431774,0.69165032,131.31,131.28,10.1469082]
[1767449434071,0.69165032,131.31,131.29,8.32173705]
[1767449434273,0.65633249,131.32,131.29,8.32173705]
[1767449437391,0.62633249,131.32,131.29,8.32173705]
[1767449442499,0.59633249,131.32,131.29,8.32173705]
[1767449444801,0.65633249,131.33,131.3,8.32112032]
[1767449445003,1.8249285,131.35,131.31,0.70519231]
[1767449445203,0.65633249,131.34,131.31,0.70519231]
[1767449445415,0.65633249,131.34,131.3,9.44085651]
[1767449447406,0.65633249,131.34,131.3,9.84493438]
[1767449447902,0.65633249,131.36,131.33,2.22900637]
[1767449448284,0.65633249,131.36,131.33,0.40407787]
[1767449449105,0.65633249,131.36,131.33,8.01801867]
[1767449451907,0.65633249,131.36,131.33,9.84294717]
[1767449452508,23.33599835,131.39,131.35,0.70519231]
[1767449453583,9.43599835,131.39,131.34,8.31867175]
[1767449454308,9.43599835,131.39,131.35,7.6131583]
[1767449454492,0.65633249,131.38,131.35,7.6131583]
[1767449455019,0.65633249,131.38,131.35,8.31835061]
[1767449455586,0.65633249,131.37,131.34,8.31884311]
[1767449463109,0.65633249,131.37,131.35,0.67128299]
[1767449471620,0.67801556,131.36,131.32,3.25771011]
[1767449471823,0.67801556,131.35,131.32,0.67128299]
[1767449472114,0.67801556,131.35,131.33,0.67128299]
[1767449472418,0.67801556,131.35,131.32,8.28611337]
[1767449473815,0.67801556,131.35,131.33,0.67128299]
[1767449474519,0.67801556,131.37,131.34,0.67128299]
[1767449475519,0.67801556,131.37,131.34,8.28474365]
[1767449481520,0.67801556,131.38,131.35,0.67128299]
[1767449483896,0.67801556,131.38,131.35,8.2844391]
[1767449484300,0.67801556,131.38,131.36,0.67128299]
[1767449485116,0.67801556,131.39,131.36,0.67128299]
[1767449487727,0.67801556,131.39,131.35,11.13286649]
[1767449488825,0.67801556,131.39,131.36,0.67128299]
[1767449491731,0.67801556,131.39,131.36,8.28381499]
[1767449498335,0.68891961,131.41,131.38,0.71621238]
[1767449498510,0.68891961,131.41,131.37,2.84842739]
[1767449499117,0.68891961,131.41,131.34,14.66138267]
[1767449499118,11.14713107,131.41,131.36,2.84842739]
[1767449499330,3.537347,131.41,131.36,2.84842739]
[1767449500038,0.68891961,131.4,131.36,2.84842739]
[1767449500447,0.68891961,131.4,131.36,0.34419798]
[1767449501532,0.68891961,131.4,131.37,7.95628597]
[1767449505247,0.68891961,131.4,131.37,10.80471336]
[1767449505419,0.68891961,131.41,131.38,7.95557125]
[1767449507848,0.68891961,131.41,131.38,7.61137327]
[1767449516048,0.68891961,131.4,131.38,7.61137327]
[1767449516942,0.68891961,131.4,131.37,7.95628597]
[1767449517345,0.68891961,131.38,131.35,7.95710021]
[1767449517552,0.68891961,131.38,131.35,7.61290223]
[1767449517727,0.68891961,131.37,131.35,7.61290223]
[1767449517927,0.68891961,131.36,131.33,21.83821419]
[1767449518135,0.65891962,131.36,131.33,21.83821419]
[1767449518950,0.65891962,131.36,131.34,7.61377308]
[1767449519746,0.65891962,131.36,131.34,7.98797105]
[1767449519945,2.84842739,131.38,131.34,7.98797105]
[1767449520145,10.45988933,131.39,131.34,7.98797105]
[1767449520770,2.84842739,131.38,131.34,7.98797105]
[1767449522063,0.68902805,131.37,131.34,7.98797105]
[1767449523253,0.68902805,131.36,131.33,22.1612149]
[1767449523478,0.68902805,131.36,131.33,8.2812149]
[1767449525679,3.53745544,131.36,131.33,8.2812149]
[1767449528892,0.68902805,131.35,131.33,7.61420608]
[1767449529066,0.65902806,131.35,131.33,7.61420608]
[1767449529964,2.84842739,131.35,131.3,0.66700882]
[1767449530274,2.84842739,131.34,131.3,8.28297967]
[1767449530453,2.8184274,131.34,131.3,8.28297967]
[1767449530659,2.84842739,131.35,131.31,8.28239349]
[1767449531073,0.68902805,131.34,131.31,8.28239349]
[1767449532172,0.68902805,131.33,131.31,0.66700882]
[1767449532374,0.65902806,131.33,131.31,0.66700882]
[1767449536486,0.65902806,131.33,131.3,0.66700882]
[1767449536674,3.53745544,131.32,131.29,8.28351982]
[1767449536881,3.53745544,131.32,131.29,7.616511]
[1767449536882,0.65902806,131.31,131.29,7.616511]
[1767449537077,0.63052806,131.31,131.29,7.616511]
[1767449537279,0.63052806,131.31,131.29,8.28351982]
[1767449544795,0.60052807,131.31,131.29,8.28351982]
[1767449549399,2.42561939,131.31,131.29,7.616511]
[1767449549600,2.42561939,131.31,131.28,0.66700882]
[1767449551694,2.3956194,131.31,131.29,7.61672633]
[1767449555405,2.3956194,131.31,131.29,0.71786635]
[1767449556513,0.57052808,131.31,131.29,8.33453644]
[1767449561421,0.57052808,131.31,131.28,0.71786635]
[1767449561716,2.3956194,131.31,131.28,0.71786635]
[1767449562117,0.66556135,131.3,131.28,0.71786635]
[1767449562297,2.49065267,131.31,131.28,0.71786635]
[1767449567392,2.49065267,131.31,131.28,8.33495602]
[1767449572315,2.46065268,131.31,131.28,8.33495602]
[1767449572503,2.49065267,131.31,131.28,8.33495602]
[1767449575725,0.66556135,131.31,131.28,8.33495602]
[1767449576023,2.49065267,131.31,131.28,8.33495602]
[1767449576524,0.66556135,131.31,131.28,8.33495602]
[1767449582224,0.66556135,131.31,131.29,0.70584498]
[1767449582528,0.7226657,131.3,131.28,0.70584498]
[1767449583105,1.82509132,131.31,131.28,0.70584498]
[1767449583307,2.54775702,131.31,131.28,0.70584498]
[1767449584721,0.7226657,131.3,131.28,0.70584498]
[1767449584921,0.69266566,131.28,131.26,0.70584498]
[1767449585123,0.66266559,131.28,131.26,0.70584498]
[1767449585629,0.60416554,131.28,131.26,0.70584498]
[1767449586510,0.60416554,131.28,131.26,8.32427243]
[1767449587237,1.82509132,131.29,131.26,8.32427243]
[1767449587422,2.54775702,131.29,131.26,8.32427243]
[1767449594344,0.7226657,131.3,131.27,0.70584498]
[1767449594547,19.03519813,131.34,131.27,0.70584498]
[1767449594548,2.54775702,131.31,131.27,0.70584498]
[1767449595644,2.54775702,131.31,131.28,8.3231515]
[1767449597848,0.7226657,131.31,131.28,8.3231515]
[1767449599857,0.7226657,131.3,131.28,8.3231515]
[1767449600156,0.6926657,131.3,131.28,8.3231515]